[Event "European Online Club-ch-I 2021"]
[Site "Online"]
[Date "2021.03.27"]
[Round "8.3"]
[White "Van Hoolandt, Patrick"]
[Black "Devallee, Jeremie"]
[Result "0-1"]
[ECO "A58"]
[WhiteElo "2017"]
[BlackElo "2220"]
[Annotator "NA"]
[PlyCount "120"]
[EventDate "2021.03.27"]
[EventType "team-tourn"]
[EventCountry "NET"]
[SourceTitle "playchess.com"]
[Source "ChessBase"]
[SourceQuality "1"]
[TimeControl "900+5"]

1. d4 {[%emt 0:00:00]} Nf6 {[%emt 0:00:03]} 2. c4 {[%emt 0:00:04]} c5 {[%emt 0:00:01]} 3. d5 {[%emt 0:00:02]} b5 {[%emt 0:00:02]} 4. cxb5 {[%emt 0:00:01]} a6 {[%emt 0:00:01]} 5. bxa6 {[%emt 0:00:00]} g6 {[%emt 0:00:01]} 6. Nc3 {[%emt 0:00:02]} Bxa6 {[%emt 0:00:02]} 7. g3 {[%emt 0:00:02]} Bg7 {[%emt 0:00:02]} 8. Nf3 {[%emt 0:00:02]} d6 {[%emt 0:00:02]} 9. Bg2 {[%emt 0:00:01]} Nfd7 {[%emt 0:00:02]} 10. Bd2 {[%emt 0:02:09]} Nb6 {[%emt 0:00:03]} 11. b3 {[%emt 0:00:02]} N8d7 {[%emt 0:00:06]} 12. O-O {[%emt 0:00:24]} Nf6 {[%emt 0:00:02]} 13. Nh4 {[%emt 0:00:18]} O-O {[%emt 0:00:26]} 14. Qc2 {[%emt 0:00:07]} Qb8 {[%emt 0:00:25]} 15. Rfd1 {[%emt 0:00:19]} Rc8 {[%emt 0:00:06]} 16. a4 {[%emt 0:00:17]} Ra7 {[%emt 0:00:48]} 17. Rab1 {[%emt 0:00:08]} Na8 {[%emt 0:00:05]} 18. e4 {[%emt 0:01:03]} Rb7 {[%emt 0:00:11]} 19. Na2 {[%emt 0:00:57]} Be2 {[%emt 0:01:24]} 20. Re1 {[%emt 0:00:38]} c4 {[%emt 0:01:24]} 21. bxc4 {[%emt 0:01:25]} Bxc4 {[%emt 0:00:14]} 22. Rxb7 {[%emt 0:00:25]} Qxb7 {[%emt 0:00:02]} 23. Rb1 {[%emt 0:00:17]} Qd7 {[%emt 0:01:44]} 24. Rc1 {[%emt 0:00:22]} Nb6 {[%emt 0:01:26]} 25. a5 {[%emt 0:00:09]} Ba6 {[%emt 0:00:11]} 26. Qb1 {[%emt 0:00:36]} Nc4 {[%emt 0:00:08]} 27. Be1 {[%emt 0:00:04]} Ng4 {[%emt 0:05:27]} 28. Bh3 {[%emt 0:00:46]} h5 {[%emt 0:00:04]} 29. Nb4 {[%emt 0:00:25]} Rb8 {[%emt 0:00:16]} 30. Qa2 {[%emt 0:00:09]} Rxb4 {[%emt 0:00:06]} 31. Bxb4 {[%emt 0:00:04]} Nce5 {[%emt 0:00:45]} 32. Bg2 {[%emt 0:01:45]} Nd3 {[%emt 0:00:17]} 33. Rb1 {[%emt 0:00:29]} Bd4 {[%emt 0:00:02]} 34. Nf3 {[%emt 0:02:14]} Bxf2+ {[%emt 0:00:03]} 35. Kh1 {[%emt 0:00:02]} Ba7 {[%emt 0:00:20]} 36. Be1 {[%emt 0:00:25]} Nxe1 {[%emt 0:00:14]} 37. Nxe1 {[%emt 0:00:10]} Nf2+ {[%emt 0:00:03]} 38. Kg1 {[%emt 0:00:01]} Nxe4+ {[%emt 0:00:23]} 39. Kh1 {[%emt 0:00:02]} Nf2+ {[%emt 0:00:02]} 40. Kg1 {[%emt 0:00:01]} Qg4 {[%emt 0:00:38]} 41. Rb6 {[%emt 0:00:11]} Bc4 {[%emt 0:00:32]} 42. Qxf2 {[%emt 0:00:06]} Qd1 {[%emt 0:00:01]} 43. Bf3 {[%emt 0:00:10]} Qa1 {[%emt 0:00:03]} 44. Kg2 {[%emt 0:00:33]} Qxa5 {[%emt 0:00:02]} 45. Qb2 {[%emt 0:00:16]} Qxb6 {[%emt 0:00:02]} 46. Qxb6 {[%emt 0:00:03]} Bxb6 {[%emt 0:00:02]} 47. Nc2 {[%emt 0:00:05]} Bc5 {[%emt 0:00:02]} 48. h4 {[%emt 0:00:07]} Kg7 {[%emt 0:00:02]} 49. g4 {[%emt 0:00:05]} hxg4 {[%emt 0:00:03]} 50. Bxg4 {[%emt 0:00:02]} Bxd5+ {[%emt 0:00:02]} 51. Kg3 {[%emt 0:00:01]} f5 {[%emt 0:00:04]} 52. Be2 {[%emt 0:00:03]} Kf6 {[%emt 0:00:03]} 53. Ne1 {[%emt 0:00:05]} e5 {[%emt 0:00:03]} 54. Nd3 {[%emt 0:00:02]} Ba3 {[%emt 0:00:14]} 55. Kf2 {[%emt 0:00:08]} Bc6 {[%emt 0:00:08]} 56. h5 {[%emt 0:00:07]} gxh5 {[%emt 0:00:02]} 57. Bxh5 {[%emt 0:00:03]} d5 {[%emt 0:00:02]} 58. Ke3 {[%emt 0:00:09]} d4+ {[%emt 0:00:03]} 59. Kd2 {[%emt 0:00:03]} e4 {[%emt 0:00:04]} 60. Nf4 {[%emt 0:00:01]} Kg5 {[%emt 0:00:03]} 0-1

[Event "European Online Club-ch-I 2021"]
[Site "Online"]
[Date "2021.03.27"]
[Round "8.5"]
[White "Moranda, Wojciech"]
[Black "Hurdzan, Tomas"]
[Result "1-0"]
[ECO "D37"]
[WhiteElo "2618"]
[BlackElo "2317"]
[Annotator "ChessBase"]
[PlyCount "103"]
[EventDate "2021.03.27"]
[EventType "team-tourn"]
[EventCountry "NET"]
[SourceTitle "playchess.com"]
[Source "ChessBase"]
[SourceQuality "1"]
[TimeControl "900+5"]

1. d4 {[%emt 0:00:00]} d5 {[%emt 0:00:07]} 2. c4 {[%emt 0:00:03]} e6 {[%emt 0:00:01]} 3. Nf3 {[%emt 0:00:02]} Nf6 {[%emt 0:00:03]} 4. Nc3 {[%emt 0:00:02]} Be7 {[%emt 0:00:01]} 5. Bf4 {[%emt 0:00:03]} O-O {[%emt 0:00:02]} 6. e3 {[%emt 0:00:01]} c5 {[%emt 0:00:02]} 7. dxc5 {[%emt 0:00:02]} Bxc5 {[%emt 0:00:01]} 8. a3 {[%emt 0:00:01]} Nc6 {[%emt 0:00:36]} 9. Qc2 {[%emt 0:00:10]} Qa5 {[%emt 0:00:27]} 10. Ra2 {[%emt 0:00:08]} Qd8 {[%emt 0:00:47]} 11. Be2 {[%emt 0:00:37]} d4 {[%emt 0:01:05]} 12. exd4 {[%emt 0:00:04]} Nxd4 {[%emt 0:00:03]} 13. Nxd4 {[%emt 0:00:01]} Bxd4 {[%emt 0:00:10]} 14. O-O {[%emt 0:00:49]} e5 {[%emt 0:00:28]} 15. Bg3 {[%emt 0:00:14]} Qe7 {[%emt 0:00:34]} 16. Bh4 {[%emt 0:01:04]} Be6 {[%emt 0:00:09]} 17. Ne4 {[%emt 0:00:27]} Bf5 {[%emt 0:01:33]} 18. Bd3 {[%emt 0:00:55]} Bxe4 {[%emt 0:00:08]} 19. Bxe4 {[%emt 0:00:05]} h6 {[%emt 0:00:15]} 20. Bxf6 {[%emt 0:00:02]} gxf6 {[%emt 0:01:36]} 21. a4 {[%emt 0:00:21]} Bc5 {[%emt 0:00:34]} 22. Qe2 {[%emt 0:03:03]} f5 {[%emt 0:01:10]} 23. Bxf5 {[%emt 0:00:03]} Rad8 {[%emt 0:00:03]} 24. b3 {[%emt 0:00:56]} Rd4 {[%emt 0:00:16]} 25. Be4 {[%emt 0:01:35]} f5 {[%emt 0:00:54]} 26. Bd5+ {[%emt 0:00:03]} Kg7 {[%emt 0:00:09]} 27. Rd2 {[%emt 0:00:02]} b6 {[%emt 0:00:57]} 28. g3 {[%emt 0:00:27]} a5 {[%emt 0:00:11]} 29. Kg2 {[%emt 0:00:10]} Rxd2 {[%emt 0:00:15]} 30. Qxd2 {[%emt 0:00:03]} Qg5 {[%emt 0:00:11]} 31. Qe2 {[%emt 0:00:32]} Qf6 {[%emt 0:00:21]} 32. f3 {[%emt 0:00:18]} Rd8 {[%emt 0:00:17]} 33. Kh1 {[%emt 0:00:09]} Kh8 {[%emt 0:00:41]} 34. Re1 {[%emt 0:00:26]} Re8 {[%emt 0:00:14]} 35. Qg2 {[%emt 0:00:37]} Re7 {[%emt 0:00:08]} 36. Qh3 {[%emt 0:00:56]} Kg7 {[%emt 0:00:04]} 37. g4 {[%emt 0:00:18]} fxg4 {[%emt 0:00:08]} 38. Qxg4+ {[%emt 0:00:29]} Qg5 {[%emt 0:00:02]} 39. Qc8 {[%emt 0:00:08]} h5 {[%emt 0:02:15]} 40. Qg8+ {[%emt 0:00:38]} Kh6 {[%emt 0:00:04]} 41. Qh8+ {[%emt 0:00:02]} Kg6 {[%emt 0:00:02]} 42. Be4+ {[%emt 0:00:31]} Kf7 {[%emt 0:00:03]} 43. Rd1 {[%emt 0:00:12]} Bd4 {[%emt 0:00:11]} 44. f4 {[%emt 0:00:34]} Qxf4 {[%emt 0:00:51]} 45. Bg2 {[%emt 0:00:09]} Ke6 {[%emt 0:00:21]} 46. Qc8+ {[%emt 0:00:06]} Kf7 {[%emt 0:00:10]} 47. Rf1 {[%emt 0:00:05]} Bf2 {[%emt 0:00:01]} 48. Bd5+ {[%emt 0:00:10]} Kg7 {[%emt 0:00:07]} 49. Qg8+ {[%emt 0:00:02]} Kh6 {[%emt 0:00:03]} 50. Qg2 {[%emt 0:00:04]} e4 {[%emt 0:00:10]} 51. Rxf2 {[%emt 0:00:04]} Qc1+ {[%emt 0:00:04]} 52. Rf1 {[%emt 0:00:02]} 1-0

[Event "European Online Club-ch-I 2021"]
[Site "Online"]
[Date "2021.03.27"]
[Round "8.6"]
[White "Bulockin, Martin"]
[Black "Tomczak, Jacek"]
[Result "0-1"]
[ECO "A43"]
[WhiteElo "2315"]
[BlackElo "2610"]
[Annotator "ChessBase"]
[PlyCount "54"]
[EventDate "2021.03.27"]
[EventType "team-tourn"]
[EventCountry "NET"]
[SourceTitle "playchess.com"]
[Source "ChessBase"]
[SourceQuality "1"]
[TimeControl "900+5"]

1. d4 {[%emt 0:00:00]} Nf6 {[%emt 0:00:03]} 2. Nf3 {[%emt 0:00:03]} c5 {[%emt 0:00:04]} 3. d5 {[%emt 0:00:12]} b5 {[%emt 0:00:02]} 4. a4 {[%emt 0:00:16]} b4 {[%emt 0:00:08]} 5. Bg5 {[%emt 0:00:11]} Qb6 {[%emt 0:00:26]} 6. e3 {[%emt 0:00:26]} h6 {[%emt 0:02:08]} 7. a5 {[%emt 0:00:35]} Qd6 {[%emt 0:00:15]} 8. Bf4 {[%emt 0:00:08]} Qxd5 {[%emt 0:00:04]} 9. Nbd2 {[%emt 0:00:09]} d6 {[%emt 0:01:06]} 10. Bc4 {[%emt 0:01:03]} Qb7 {[%emt 0:00:03]} 11. O-O {[%emt 0:01:07]} e5 {[%emt 0:00:09]} 12. Bxe5 {[%emt 0:01:33]} dxe5 {[%emt 0:00:03]} 13. Nxe5 {[%emt 0:00:00]} Be6 {[%emt 0:00:01]} 14. Bxe6 {[%emt 0:00:04]} fxe6 {[%emt 0:00:01]} 15. Ndc4 {[%emt 0:00:27]} Nbd7 {[%emt 0:01:27]} 16. Ng6 {[%emt 0:00:36]} Rg8 {[%emt 0:00:10]} 17. Nxf8 {[%emt 0:02:18]} Kxf8 {[%emt 0:00:06]} 18. Qd6+ {[%emt 0:00:03]} Kf7 {[%emt 0:00:10]} 19. Rad1 {[%emt 0:00:16]} Rgd8 {[%emt 0:02:12]} 20. b3 {[%emt 0:01:02]} Qb8 {[%emt 0:01:32]} 21. Qc6 {[%emt 0:00:31]} Ne5 {[%emt 0:01:10]} 22. Nd6+ {[%emt 0:01:12]} Ke7 {[%emt 0:00:21]} 23. Nf5+ {[%emt 0:01:17]} exf5 {[%emt 0:00:05]} 24. Qxc5+ {[%emt 0:00:02]} Ke6 {[%emt 0:00:19]} 25. f4 {[%emt 0:01:43]} Nf7 {[%emt 0:00:27]} 26. e4 {[%emt 0:01:15]} Nxe4 {[%emt 0:00:07]} 27. Qc4+ {[%emt 0:00:08]} Ke7 {[%emt 0:00:12]} 0-1

[Event "European Online Club-ch-I 2021"]
[Site "Online"]
[Date "2021.03.27"]
[Round "8.7"]
[White "Klekowski, Maciej"]
[Black "Mladek, Richard"]
[Result "1-0"]
[ECO "E63"]
[WhiteElo "2510"]
[BlackElo "2291"]
[Annotator "ChessBase"]
[PlyCount "91"]
[EventDate "2021.03.27"]
[EventType "team-tourn"]
[EventCountry "NET"]
[SourceTitle "playchess.com"]
[Source "ChessBase"]
[SourceQuality "1"]
[TimeControl "900+5"]

1. c4 {[%emt 0:00:00]} Nf6 {[%emt 0:00:03]} 2. Nc3 {[%emt 0:00:02]} g6 {[%emt 0:00:11]} 3. g3 {[%emt 0:00:03]} Bg7 {[%emt 0:00:02]} 4. Bg2 {[%emt 0:00:02]} O-O {[%emt 0:00:01]} 5. d4 {[%emt 0:00:03]} d6 {[%emt 0:00:04]} 6. Nf3 {[%emt 0:00:01]} Nc6 {[%emt 0:00:02]} 7. O-O {[%emt 0:00:04]} a6 {[%emt 0:00:01]} 8. e3 {[%emt 0:00:03]} e5 {[%emt 0:00:16]} 9. h3 {[%emt 0:00:48]} Rb8 {[%emt 0:00:38]} 10. d5 {[%emt 0:00:38]} Na5 {[%emt 0:00:21]} 11. Nd2 {[%emt 0:00:40]} c5 {[%emt 0:00:03]} 12. Rb1 {[%emt 0:00:48]} b6 {[%emt 0:01:48]} 13. a3 {[%emt 0:00:50]} Ne8 {[%emt 0:00:33]} 14. b4 {[%emt 0:00:04]} Nb7 {[%emt 0:00:01]} 15. Bb2 {[%emt 0:00:16]} f5 {[%emt 0:00:06]} 16. f4 {[%emt 0:00:19]} e4 {[%emt 0:00:27]} 17. b5 {[%emt 0:00:47]} Na5 {[%emt 0:00:22]} 18. a4 {[%emt 0:00:17]} Qe7 {[%emt 0:00:10]} 19. Qc2 {[%emt 0:00:19]} Rf7 {[%emt 0:01:05]} 20. Ne2 {[%emt 0:00:45]} axb5 {[%emt 0:00:16]} 21. axb5 {[%emt 0:00:04]} Ra8 {[%emt 0:00:12]} 22. Ra1 {[%emt 0:00:15]} Bxb2 {[%emt 0:00:11]} 23. Qxb2 {[%emt 0:00:00]} Qf6 {[%emt 0:00:09]} 24. Qxf6 {[%emt 0:00:25]} Nxf6 {[%emt 0:00:02]} 25. Ra3 {[%emt 0:00:09]} Rfa7 {[%emt 0:00:07]} 26. Rfa1 {[%emt 0:00:02]} Nc6 {[%emt 0:00:28]} 27. Rxa7 {[%emt 0:00:06]} Rxa7 {[%emt 0:00:02]} 28. Rxa7 {[%emt 0:00:00]} Nxa7 {[%emt 0:00:02]} 29. Nc3 {[%emt 0:00:15]} Bd7 {[%emt 0:00:12]} 30. g4 {[%emt 0:00:04]} Nc8 {[%emt 0:00:15]} 31. Kh2 {[%emt 0:00:11]} Kg7 {[%emt 0:00:21]} 32. Bf1 {[%emt 0:00:04]} Kf7 {[%emt 0:00:14]} 33. Be2 {[%emt 0:00:28]} Ne7 {[%emt 0:00:09]} 34. Kg3 {[%emt 0:00:20]} Kg7 {[%emt 0:00:24]} 35. Kf2 {[%emt 0:01:12]} Kf7 {[%emt 0:00:09]} 36. Bf1 {[%emt 0:01:08]} Kg7 {[%emt 0:00:26]} 37. g5 {[%emt 0:00:03]} Ne8 {[%emt 0:00:35]} 38. h4 {[%emt 0:00:22]} Kf7 {[%emt 0:00:08]} 39. Bh3 {[%emt 0:00:06]} Nc8 {[%emt 0:04:49]} 40. Ndxe4 {[%emt 0:00:12]} Ke7 {[%emt 0:00:02]} 41. Ng3 {[%emt 0:00:09]} Ng7 {[%emt 0:00:02]} 42. Bf1 {[%emt 0:00:26]} Kd8 {[%emt 0:00:06]} 43. Be2 {[%emt 0:00:06]} Ne7 {[%emt 0:00:03]} 44. h5 {[%emt 0:00:04]} Ne8 {[%emt 0:00:29]} 45. h6 {[%emt 0:00:05]} Nc8 {[%emt 0:00:17]} 46. Bd3 {[%emt 0:00:15]} 1-0

[Event "European Online Club-ch-I 2021"]
[Site "Online"]
[Date "2021.03.27"]
[Round "8.8"]
[White "Stinka, Jakub"]
[Black "Teclaf, Pawel"]
[Result "0-1"]
[ECO "A40"]
[WhiteElo "2232"]
[BlackElo "2507"]
[Annotator "ChessBase"]
[PlyCount "106"]
[EventDate "2021.03.27"]
[EventType "team-tourn"]
[EventCountry "NET"]
[SourceTitle "playchess.com"]
[Source "ChessBase"]
[SourceQuality "1"]
[TimeControl "900+5"]

1. d4 {[%emt 0:00:00]} e6 {[%emt 0:00:36]} 2. c4 {[%emt 0:00:04]} b6 {[%emt 0:00:03]} 3. e4 {[%emt 0:00:54]} Bb7 {[%emt 0:00:16]} 4. Bd3 {[%emt 0:00:29]} Nc6 {[%emt 0:00:02]} 5. Be3 {[%emt 0:00:24]} Nb4 {[%emt 0:01:10]} 6. Nc3 {[%emt 0:00:29]} f5 {[%emt 0:00:53]} 7. Bb1 {[%emt 0:01:47]} fxe4 {[%emt 0:02:46]} 8. Bxe4 {[%emt 0:00:20]} Bxe4 {[%emt 0:00:14]} 9. Nxe4 {[%emt 0:00:03]} d5 {[%emt 0:00:02]} 10. Ng3 {[%emt 0:04:35]} dxc4 {[%emt 0:00:56]} 11. Qh5+ {[%emt 0:00:07]} g6 {[%emt 0:00:13]} 12. Qb5+ {[%emt 0:00:03]} c6 {[%emt 0:03:34]} 13. Qxc4 {[%emt 0:00:04]} Qd5 {[%emt 0:00:02]} 14. Qxd5 {[%emt 0:00:19]} cxd5 {[%emt 0:01:34]} 15. Kd2 {[%emt 0:01:02]} Rc8 {[%emt 0:00:12]} 16. a3 {[%emt 0:00:08]} Nc6 {[%emt 0:00:09]} 17. Rc1 {[%emt 0:01:00]} Bg7 {[%emt 0:00:14]} 18. f4 {[%emt 0:01:13]} Nh6 {[%emt 0:00:51]} 19. Nf3 {[%emt 0:00:19]} Kd7 {[%emt 0:00:04]} 20. b4 {[%emt 0:00:06]} Ng4 {[%emt 0:00:20]} 21. h3 {[%emt 0:00:40]} Nxe3 {[%emt 0:00:20]} 22. Kxe3 {[%emt 0:00:02]} Rhf8 {[%emt 0:00:02]} 23. Ne2 {[%emt 0:00:14]} a5 {[%emt 0:00:03]} 24. b5 {[%emt 0:00:11]} Ne7 {[%emt 0:00:03]} 25. a4 {[%emt 0:00:15]} Rc4 {[%emt 0:00:19]} 26. Rxc4 {[%emt 0:00:27]} dxc4 {[%emt 0:00:03]} 27. Ne5+ {[%emt 0:00:18]} Bxe5 {[%emt 0:00:05]} 28. dxe5 {[%emt 0:00:01]} Nd5+ {[%emt 0:00:06]} 29. Ke4 {[%emt 0:00:11]} c3 {[%emt 0:00:02]} 30. Rc1 {[%emt 0:00:08]} Rc8 {[%emt 0:00:06]} 31. Kd3 {[%emt 0:00:38]} Nb4+ {[%emt 0:00:10]} 32. Ke3 {[%emt 0:00:05]} c2 {[%emt 0:00:07]} 33. Kd2 {[%emt 0:00:46]} Rc4 {[%emt 0:00:24]} 34. g3 {[%emt 0:00:09]} Ke7 {[%emt 0:00:07]} 35. h4 {[%emt 0:00:07]} h5 {[%emt 0:00:04]} 36. Nc3 {[%emt 0:00:08]} Rd4+ {[%emt 0:00:10]} 37. Ke2 {[%emt 0:00:09]} Rd3 {[%emt 0:00:02]} 38. Rxc2 {[%emt 0:00:07]} Rxg3 {[%emt 0:00:07]} 39. Rc1 {[%emt 0:00:02]} Rg4 {[%emt 0:00:11]} 40. Ne4 {[%emt 0:00:03]} Rxf4 {[%emt 0:00:08]} 41. Nd6 {[%emt 0:00:10]} Nd5 {[%emt 0:00:02]} 42. Rc8 {[%emt 0:00:06]} Rxa4 {[%emt 0:00:27]} 43. Re8+ {[%emt 0:00:06]} Kd7 {[%emt 0:00:02]} 44. Rb8 {[%emt 0:00:01]} Rxh4 {[%emt 0:00:05]} 45. Rb7+ {[%emt 0:00:01]} Kd8 {[%emt 0:00:02]} 46. Nf7+ {[%emt 0:00:02]} Ke8 {[%emt 0:00:03]} 47. Nd6+ {[%emt 0:00:02]} Kf8 {[%emt 0:00:02]} 48. Nc8 {[%emt 0:00:11]} Re4+ {[%emt 0:00:08]} 49. Kf3 {[%emt 0:00:02]} Re3+ {[%emt 0:00:03]} 50. Kf2 {[%emt 0:00:01]} Rxe5 {[%emt 0:00:01]} 51. Nxb6 {[%emt 0:00:03]} Nxb6 {[%emt 0:00:02]} 52. Rxb6 {[%emt 0:00:01]} a4 {[%emt 0:00:01]} 53. Rb8+ {[%emt 0:00:11]} Kg7 {[%emt 0:00:05]} 0-1

[Event "European Online Club-ch-I 2021"]
[Site "Online"]
[Date "2021.03.27"]
[Round "8.9"]
[White "Anton Guijarro, David"]
[Black "Skytte, Rasmus"]
[Result "1-0"]
[ECO "A43"]
[WhiteElo "2673"]
[BlackElo "2381"]
[Annotator "ChessBase"]
[PlyCount "73"]
[EventDate "2021.03.27"]
[EventType "team-tourn"]
[EventCountry "NET"]
[SourceTitle "playchess.com"]
[Source "ChessBase"]
[SourceQuality "1"]
[TimeControl "900+5"]

1. d4 {[%emt 0:00:00]} Nf6 {[%emt 0:00:04]} 2. Nf3 {[%emt 0:00:05]} c5 {[%emt 0:00:04]} 3. d5 {[%emt 0:00:05]} d6 {[%emt 0:00:02]} 4. Nc3 {[%emt 0:00:15]} Qa5 {[%emt 0:00:05]} 5. Bd2 {[%emt 0:00:45]} b5 {[%emt 0:00:05]} 6. a3 {[%emt 0:00:02]} a6 {[%emt 0:00:03]} 7. e4 {[%emt 0:00:15]} Qc7 {[%emt 0:00:02]} 8. b4 {[%emt 0:00:24]} g6 {[%emt 0:00:24]} 9. bxc5 {[%emt 0:00:05]} Qxc5 {[%emt 0:00:03]} 10. Bd3 {[%emt 0:00:02]} Bg7 {[%emt 0:00:05]} 11. O-O {[%emt 0:00:02]} O-O {[%emt 0:00:04]} 12. h3 {[%emt 0:00:17]} Nbd7 {[%emt 0:00:18]} 13. Ne2 {[%emt 0:00:47]} Nh5 {[%emt 0:00:22]} 14. Be3 {[%emt 0:00:08]} Qc7 {[%emt 0:00:04]} 15. Ned4 {[%emt 0:00:16]} Ne5 {[%emt 0:01:09]} 16. Nxe5 {[%emt 0:00:16]} Bxe5 {[%emt 0:00:03]} 17. a4 {[%emt 0:00:03]} b4 {[%emt 0:01:55]} 18. a5 {[%emt 0:00:18]} Bd7 {[%emt 0:00:14]} 19. Qd2 {[%emt 0:00:10]} Nf4 {[%emt 0:00:24]} 20. Qxb4 {[%emt 0:00:26]} Nxd3 {[%emt 0:01:21]} 21. cxd3 {[%emt 0:00:05]} Rab8 {[%emt 0:00:06]} 22. Qd2 {[%emt 0:00:22]} f5 {[%emt 0:00:20]} 23. Rac1 {[%emt 0:00:11]} Qb7 {[%emt 0:00:55]} 24. Nc6 {[%emt 0:00:09]} f4 {[%emt 0:00:19]} 25. Bb6 {[%emt 0:00:02]} Bxc6 {[%emt 0:00:20]} 26. dxc6 {[%emt 0:00:04]} Qc8 {[%emt 0:00:03]} 27. d4 {[%emt 0:00:06]} Bg7 {[%emt 0:00:07]} 28. c7 {[%emt 0:00:08]} Rb7 {[%emt 0:00:03]} 29. Qd3 {[%emt 0:00:52]} f3 {[%emt 0:00:05]} 30. Qxa6 {[%emt 0:00:40]} fxg2 {[%emt 0:00:09]} 31. Kxg2 {[%emt 0:00:03]} Rxc7 {[%emt 0:00:05]} 32. Qxc8 {[%emt 0:00:02]} Rcxc8 {[%emt 0:00:02]} 33. Rxc8 {[%emt 0:00:01]} Rxc8 {[%emt 0:00:02]} 34. a6 {[%emt 0:00:03]} Ra8 {[%emt 0:00:14]} 35. a7 {[%emt 0:00:02]} Bh6 {[%emt 0:00:59]} 36. Rb1 {[%emt 0:00:04]} Kf7 {[%emt 0:00:04]} 37. d5 {[%emt 0:00:19]} 1-0

[Event "European Online Club-ch-I 2021"]
[Site "Online"]
[Date "2021.03.27"]
[Round "8.10"]
[White "Sorensen, Jan"]
[Black "Mchedlishvili, Mikheil"]
[Result "0-1"]
[ECO "B10"]
[WhiteElo "2369"]
[BlackElo "2570"]
[Annotator "ChessBase"]
[PlyCount "72"]
[EventDate "2021.03.27"]
[EventType "team-tourn"]
[EventCountry "NET"]
[SourceTitle "playchess.com"]
[Source "ChessBase"]
[SourceQuality "1"]
[TimeControl "900+5"]

1. e4 {[%emt 0:00:00]} c6 {[%emt 0:00:03]} 2. Nf3 {[%emt 0:00:05]} d5 {[%emt 0:00:02]} 3. d3 {[%emt 0:00:01]} Bg4 {[%emt 0:00:05]} 4. h3 {[%emt 0:00:03]} Bh5 {[%emt 0:00:02]} 5. Qe2 {[%emt 0:00:04]} e6 {[%emt 0:00:05]} 6. g4 {[%emt 0:00:07]} Bg6 {[%emt 0:00:02]} 7. h4 {[%emt 0:00:05]} h5 {[%emt 0:00:09]} 8. Ne5 {[%emt 0:00:15]} Bh7 {[%emt 0:01:34]} 9. g5 {[%emt 0:00:24]} Nd7 {[%emt 0:01:35]} 10. Nxf7 {[%emt 0:02:10]} Kxf7 {[%emt 0:00:04]} 11. Qxh5+ {[%emt 0:00:02]} g6 {[%emt 0:00:11]} 12. Qg4 {[%emt 0:00:05]} Bd6 {[%emt 0:00:41]} 13. Bh3 {[%emt 0:00:16]} Nf8 {[%emt 0:00:58]} 14. f4 {[%emt 0:00:23]} Ne7 {[%emt 0:00:04]} 15. b3 {[%emt 0:01:07]} Bb4+ {[%emt 0:00:24]} 16. Bd2 {[%emt 0:01:31]} Bxd2+ {[%emt 0:00:14]} 17. Nxd2 {[%emt 0:00:02]} Qa5 {[%emt 0:00:02]} 18. Ke2 {[%emt 0:00:12]} Qc3 {[%emt 0:00:50]} 19. Rac1 {[%emt 0:01:13]} Ke8 {[%emt 0:00:09]} 20. Nf3 {[%emt 0:00:07]} Rd8 {[%emt 0:00:11]} 21. Kf2 {[%emt 0:00:22]} Bg8 {[%emt 0:00:07]} 22. Kg2 {[%emt 0:00:22]} dxe4 {[%emt 0:02:06]} 23. dxe4 {[%emt 0:00:11]} e5 {[%emt 0:00:04]} 24. f5 {[%emt 0:03:09]} gxf5 {[%emt 0:00:12]} 25. exf5 {[%emt 0:00:01]} Bd5 {[%emt 0:02:25]} 26. Rhe1 {[%emt 0:01:02]} Nfg6 {[%emt 0:03:01]} 27. fxg6 {[%emt 0:00:15]} Nxg6 {[%emt 0:00:01]} 28. Re4 {[%emt 0:01:28]} Bxe4 {[%emt 0:00:50]} 29. Qxe4 {[%emt 0:00:02]} Nxh4+ {[%emt 0:00:24]} 30. Nxh4 {[%emt 0:00:07]} Rd2+ {[%emt 0:00:02]} 31. Kg1 {[%emt 0:00:18]} Qg3+ {[%emt 0:00:18]} 32. Ng2 {[%emt 0:00:38]} Rxh3 {[%emt 0:00:06]} 33. Qg6+ {[%emt 0:00:14]} Kd8 {[%emt 0:00:05]} 34. Qf6+ {[%emt 0:00:07]} Kc7 {[%emt 0:00:02]} 35. Qe7+ {[%emt 0:00:21]} Rd7 {[%emt 0:00:02]} 36. Qc5 {[%emt 0:00:23]} Rdh7 {[%emt 0:00:08]} 0-1

[Event "European Online Club-ch-I 2021"]
[Site "Online"]
[Date "2021.03.27"]
[Round "8.11"]
[White "Ibarra Jerez, Jose Carlos"]
[Black "Vinter-Schou, Uffe"]
[Result "1-0"]
[ECO "B43"]
[WhiteElo "2553"]
[BlackElo "2320"]
[Annotator "ChessBase"]
[PlyCount "59"]
[EventDate "2021.03.27"]
[EventType "team-tourn"]
[EventCountry "NET"]
[SourceTitle "playchess.com"]
[Source "ChessBase"]
[SourceQuality "1"]
[TimeControl "900+5"]

1. e4 {[%emt 0:00:00]} c5 {[%emt 0:00:05]} 2. Nc3 {[%emt 0:00:06]} a6 {[%emt 0:00:06]} 3. Nf3 {[%emt 0:00:20]} e6 {[%emt 0:00:04]} 4. d4 {[%emt 0:00:03]} cxd4 {[%emt 0:00:03]} 5. Nxd4 {[%emt 0:00:00]} b5 {[%emt 0:00:03]} 6. g3 {[%emt 0:00:30]} Bb7 {[%emt 0:00:08]} 7. Bg2 {[%emt 0:00:03]} Nf6 {[%emt 0:00:03]} 8. a3 {[%emt 0:00:04]} b4 {[%emt 0:00:52]} 9. axb4 {[%emt 0:00:03]} Bxb4 {[%emt 0:00:03]} 10. O-O {[%emt 0:00:27]} O-O {[%emt 0:00:10]} 11. Bg5 {[%emt 0:00:18]} d6 {[%emt 0:00:36]} 12. Re1 {[%emt 0:01:04]} Qc7 {[%emt 0:02:08]} 13. Bxf6 {[%emt 0:00:21]} gxf6 {[%emt 0:00:04]} 14. Re3 {[%emt 0:01:54]} Nd7 {[%emt 0:00:29]} 15. Nce2 {[%emt 0:06:11]} Ne5 {[%emt 0:00:37]} 16. Nf4 {[%emt 0:00:29]} Bc5 {[%emt 0:01:50]} 17. Nh5 {[%emt 0:00:13]} Qe7 {[%emt 0:00:12]} 18. c3 {[%emt 0:00:10]} Kh8 {[%emt 0:00:20]} 19. h3 {[%emt 0:00:07]} Rg8 {[%emt 0:00:08]} 20. Kh2 {[%emt 0:00:16]} Rad8 {[%emt 0:00:32]} 21. b4 {[%emt 0:00:44]} Bb6 {[%emt 0:00:06]} 22. Qb3 {[%emt 0:00:05]} Rc8 {[%emt 0:01:12]} 23. Re2 {[%emt 0:00:17]} Rc7 {[%emt 0:01:26]} 24. Rc2 {[%emt 0:00:48]} Rgc8 {[%emt 0:00:09]} 25. Raa2 {[%emt 0:00:03]} Nd3 {[%emt 0:01:34]} 26. Kg1 {[%emt 0:00:24]} Bxd4 {[%emt 0:00:46]} 27. cxd4 {[%emt 0:00:02]} Rxc2 {[%emt 0:00:01]} 28. Rxc2 {[%emt 0:00:01]} Rxc2 {[%emt 0:00:04]} 29. Qxc2 {[%emt 0:00:00]} Nxb4 {[%emt 0:00:02]} 30. Qd2 {[%emt 0:00:20]} 1-0